Cogmind - Beta 9.3 @@@ ROGUE MODE // 2019.12.26 @ 19:22:10 // Winter2019/RPGLIKE Player: badjay Result: Destroyed by G-34 Mercenary with Small Laser Performance ------------- Evolutions (0) 0 Regions Visited (1) 200 Robots Destroyed (18) 90 Value Destroyed (274) 274 Prototype IDs (2) 40 Alien Tech Used (0) 0 Bonus (0) 0 TOTAL SCORE: 604 Bonus ------- None Cogmind --------- Core Integrity 0/600 Matter 285/300 Energy 97/100 System Corruption 0% Temperature Cool (9) Movement Flying (40) Location -10/Materials Parts ------- > --- POWER (1) -------- (None) > --- PROPULSION (1) --- Flight Unit > --- UTILITY (1) ------ Transport Network Coupler > --- WEAPON (2) ------- EM Pulse Gun EM Pulse Gun > --- INVENTORY (0) ---- (None) Peak State ------------ > --- POWER ------------ Light Ion Engine > --- PROPULSION ------- Hover Unit > --- UTILITY ---------- Transport Network Coupler > --- WEAPON ----------- EM Pulse Gun EM Pulse Gun > --- INVENTORY -------- (None) [Rating: 5] Favorites ----------- Power Light Ion Engine Engine Light Ion Engine Propulsion Flight Unit Hover Unit Hover Unit Flight Unit Flight Unit Utility Transport Network Coupler Processor Transport Network Coupler Weapon EM Pulse Gun Energy Gun EM Pulse Gun Build | -11 -10 ------- Run | Scr Mat Slots Evolved 1 | . 1 Power . | . . Propulsion . | . . Utility . | . . Weapon 1 | . 1 Parts Attached 9 | 3 6 Power 2 | 2 . Engine 2 | 2 . Core . | . . Reactor . | . . Propulsion 3 | . 3 Treads . | . . Leg . | . . Wheel . | . . Hover 1 | . 1 Flight 2 | . 2 Utility 1 | . 1 Device . | . . Storage . | . . Processor 1 | . 1 Hackware . | . . Protection . | . . Artifact . | . . Weapon 3 | 1 2 Energy Gun 3 | 1 2 Energy Cannon . | . . Ballistic Gun . | . . Ballistic Cannon . | . . Launcher . | . . Special Weapon . | . . Impact Weapon . | . . Slashing Weapon . | . . Piercing Weapon . | . . Special Melee Weapon . | . . Unidentified Prototypes . | . . Parts Lost 3 | . 3 Power 1 | . 1 Propulsion 1 | . 1 Utility . | . . Weapon 1 | . 1 Highest Loss Streak 3 | . 3 Average Slot Usage (%) 73 | . 73 Engine 19 | . 19 Flight 8 | . 8 Processor 9 | . 9 Energy Gun 34 | . 34 Naked Turns . | . . Heaviest Build 7 | 5 7 Greatest Support 11 | 8 11 Greatest Overweight (x) 1 | 1 . Average Overweight (x) . | . . Largest Inventory Capacity . | . . Average Capacity . | . . Most Carried . | . . Average Carried . | . . Final Capacity . | . . Final Carried . | . . Class Distribution -------------------- 100% | Mutant Dominant Class ---------------- Mutant | -10/Materials Resources | -11 -10 ----------- Run | Scr Mat Matter Collected 270 | 194 76 Remotely . | . . Salvage Created 416 | . 416 Parts 47 | . 47 Haulers Intercepted 2 | . 2 Recyclers Shooed . | . . Parts Field Recycled . | . . Retrieved Matter . | . . Parts Self-Destructed . | . . Prevented . | . . Kills | -11 -10 ------- Run | Scr Mat Combat Hostiles Destroyed 10 | . 10 Guns 8 | . 8 AOE 2 | . 2 Classes Destroyed 7 | . 7 Worker 3 | . 3 Builder 1 | . 1 Tunneler 1 | . 1 Hauler 2 | . 2 Watcher 1 | . 1 Swarmer 6 | . 6 Grunt 4 | . 4 Best Kill Streak 4 | . 4 Combat Bots Only 4 | . 4 Max Kills in Single Turn 3 | . 3 Gunslinging 1 | . 1 Exploded 1 | . 1 Melee . | . . Uniques/NPCs Destroyed . | . . Combat | -11 -10 -------- Run | Scr Mat Damage Taken 903 | . 903 Core 751 | . 751 Absorbed by Shields . | . . Redirected to Core 473 | . 473 Core Remaining (%) 100 | 100 . Volleys Fired 40 | . 40 Largest 2 | . 2 Hottest 80 | . 80 Shots Fired 72 | . 72 Gun 72 | . 72 Cannon . | . . Launcher . | . . Special . | . . Kinetic . | . . Thermal . | . . Explosive . | . . Electromagnetic 72 | . 72 Robot Hit Streak 13 | . 13 Robot Miss Streak 4 | . 4 Penetration Max . | . . Secondary Targets 5 | . 5 Max Gunslinging Chain 1 | . 1 Shots Hit Robots 52 | . 52 Core Hits 23 | . 23 Critical Hits . | . . Critical Kills . | . . Critical Parts Destroyed . | . . Melee Attacks . | . . Impact . | . . Slashing . | . . Piercing . | . . Sneak Attacks . | . . Combat Hostiles . | . . Follow-up Attacks . | . . Damage Inflicted 752 | . 752 Guns 613 | . 613 Cannons . | . . Explosions 139 | . 139 Melee . | . . Ramming . | . . Kinetic . | . . Thermal 72 | . 72 Explosive 67 | . 67 Electromagnetic 613 | . 613 Impact . | . . Slashing . | . . Piercing . | . . Highest Corruption . | . . Average Corruption . | . . Corruption Purged . | . . Overload Shots . | . . Overflow Damage 1 | . 1 Projectiles . | . . Explosions 1 | . 1 Melee . | . . Knockbacks . | . . Impact . | . . Kinetic . | . . Secondary . | . . Self-Inflicted Damage 199 | . 199 Shots 3 | . 3 Rammed . | . . Targets Rammed . | . . Kicked . | . . Crushed . | . . Highest Temperature 350 | . 350 Average Temperature 124 | . 124 Received Heat Transfer 183 | . 183 Effects 3 | . 3 Interference 3 | . 3 Siege Activations . | . . Robots Corrupted 1 | . 1 Combat Hostiles . | . . Parts Fried 5 | . 5 Impact Corruptions . | . . Robots Melted . | . . Combat Hostiles . | . . Parts Melted . | . . Heat Transferred 100 | . 100 Parts Sabotaged . | . . Parts Stolen . | . . Parts Stripped . | . . Power Chain Reactions 2 | . 2 Missiles Intercepted . | . . Alert | -11 -10 ------- Run | Scr Mat Peak Influence 368 | . 368 Average Influence 130 | . 142 Maximum Alert Level 1 | . 1 Low Security (%) 73 | 100 70 Level 1 26 | . 29 Level 2 . | . . Level 3 . | . . Level 4 . | . . Level 5 . | . . High Security . | . . Max Security . | . . Squads Dispatched 2 | . 2 Investigation . | . . Extermination . | . . Reinforcement 2 | . 2 Assault . | . . Garrison . | . . Intercept . | . . Construction Impeded . | . . Haulers Reinforced . | . . Stealth | -11 -10 --------- Run | Scr Mat Distress Signals 1 | . 1 Communications Jammed . | . . Distress Signals . | . . Times Spotted 19 | . 19 Peak Tracking Total 6 | . 6 Tactical Retreats 1 | . 1 Traps | -11 -10 ------- Run | Scr Mat Traps Triggered . | . . Indirectly . | . . Trap Hack Attempts . | . . Triggered . | . . Disarmed . | . . Reprogrammed . | . . Reused . | . . Traps Extracted . | . . Installed . | . . Triggered . | . . Machines | -11 -10 ---------- Run | Scr Mat Machines Disabled 3 | . 3 Max in Single Turn 1 | . 1 Machines Sabotaged . | . . Garrisons Compromised . | . . Overloaded Fab Kills . | . . Fab Network Shutdowns . | . . Hacking | -11 -10 --------- Run | Scr Mat Machines Accessed 3 | . 3 Terminals 3 | . 3 Fabricators . | . . Repair Stations . | . . Recycling Units . | . . Scanalyzers . | . . Garrison Access . | . . Total Hacks 17 | . 17 Successful 7 | . 7 Failed 10 | . 10 Catastrophic 1 | . 1 Database Lockouts . | . . Manual 9 | . 9 Terminals 17 | . 17 Fabricators . | . . Repair Stations . | . . Recycling Units . | . . Scanalyzers . | . . Garrison Access . | . . Terminal Hacks 4 | . 4 Record 1 | . 1 Prototype ID Bank 1 | . 1 Branch Access Points 1 | . 1 Registered Components 1 | . 1 Fabricator Hacks . | . . Repair Station Hacks . | . . Recycling Unit Hacks . | . . Scanalyzer . | . . Garrison Access Hacks . | . . Unauthorized Hacks 8 | . 8 Terminals 3 | . 3 Botnet 3 | . 3 Fabricators . | . . Repair Stations . | . . Recycling Units . | . . Scanalyzers . | . . Garrison Access . | . . Data Cores Recovered . | . . Used . | . . Hacking Detections 3 | . 3 Full Trace Events . | . . Feedback Events . | . . Feedback Blocked . | . . Robot Schematics Acquired . | . . Robots Built . | . . Matter . | . . Time . | . . Total Robot Build Rating . | . . Part Schematics Acquired . | . . Parts Built . | . . Matter . | . . Time . | . . Total Part Build Rating . | . . Parts Repaired . | . . Time . | . . Parts Recycled . | . . Recycled Matter . | . . Retrieved Matter . | . . Retrieved Components . | . . Parts Scanalyzed . | . . Part Schematics Acquired . | . . Parts Damaged . | . . Bothacking | -11 -10 ------------ Run | Scr Mat Used RIF Installer . | . . Robots Hacked . | . . Non-combat . | . . Combat . | . . Robot Hacks Applied . | . . Relay Couplers Released . | . . Robots Rewired . | . . Allies Hacked . | . . Hacks Repelled . | . . Allies | -11 -10 -------- Run | Scr Mat Total Allies . | . . Largest Group . | . . Highest-Rated Group . | . . Highest-Rated Ally . | . . Total Orders . | . . Ally Attacks . | . . Total Damage . | . . Kills . | . . Allies Corrupted . | . . Allies Melted . | . . Intel | -11 -10 ------- Run | Scr Mat Robot Analysis Total . | . . Derelict Logs Recovered . | . . Drone Launches . | . . Drone Recoveries . | . . Exploration | -11 -10 ------------- Run | Scr Mat Turns Passed 353 | 29 324 Spaces Moved 432 | 46 386 Core 327 | 46 281 Treads . | . . Legs . | . . Wheels . | . . Hover 11 | . 11 Flight 94 | . 94 Fastest Speed 40 | 50 40 Average Speed 48 | 52 47 Slowest Speed 100 | 100 60 Overloaded Moves . | . . Propulsion Burnouts . | . . Robots Hopped 4 | . 4 Cave-ins Triggered . | . . Exploration Rate (%) 39 | 4 75 Regions Visited 1 Branch Regions . Pre-discovered Areas . | . . Known Exits Taken . | . . Unknown Exits Taken 1 | 1 . Scrap Searched . | . . Spaces Dug . | . . Terrain Destroyed 30 | . 30 Melee . | . . Projectile . | . . AOE 30 | . 30 Actions | -11 -10 --------- Run | Scr Mat Total 496 | 49 447 Wait 11 | . 11 Move 423 | 45 378 Hop 4 | . 4 Pick Up . | . . Fast Attach 9 | 3 6 Attach . | . . Detach . | . . Swap . | . . Drop 2 | 1 1 Fire 40 | . 40 Melee . | . . Ram . | . . Kick . | . . Crush . | . . Escape Stasis . | . . Rewire . | . . Trap . | . . Miscellaneous 7 | . 7 Route ------- -11/Scrapyard -10/Materials (discovered 4 exits: [*Mat x2] / *Min x2) History --------- Turn | Location | Event 16 | -11/Scrapyard | Discovered new exit (range 15) 30 | -11/Scrapyard | Entered Materials 56 | -10/Materials | Upgraded with Weapon slot (x1) 66 | -10/Materials | Identified exit to Mines 123 | -10/Materials | Discovered new exit (range 10) 190 | -10/Materials | Discovered new exit (range 10) 283 | -10/Materials | Core integrity fell below 50% 305 | -10/Materials | Build established: Mutant 330 | -10/Materials | Reached level 2 331 | -10/Materials | Core integrity fell below 20% 354 | -10/Materials | Destroyed by G-34 Mercenary with Small Laser Last Messages --------------- 00307_ Transport Network Coupler temporarily disabled. 00307_ EM Pulse Gun temporarily disabled. 00307_ Transport Network Coupler temporarily disabled. 00308_ K-01 Serf cleans the Pressure Siphon. 00330_ Chain reaction triggered in Lgt. Nuclear Core. 00330_ Imp. Heat Sink fried. 00330_ G-47 Trooper destroyed. 00330_ Flight Unit destroyed. 00330_ Destroyed Flight Unit. 00330_ EM Pulse Gun destroyed. 00330_ Destroyed EM Pulse Gun. 00330_ Reached level 2. 00330_ Nuclear Reactor explodes. 00330_ K-01 Serf destroyed. 00337_ The unstable cave ceiling collapses. 00337_ Acquired EM Pulse Gun. 00343_ U-05 Engineer lays Concrete. 00347_ Acquired Flight Unit. 00349_ Lgt. Ion Engine destroyed. 00352_ U-05 Engineer lays Concrete. Map ----- +----------------------------------------------------+ | | | | | | | | | | | | | | | | | ?????????????????????????????????????######??????? | | ??????????????????????????########### #???#### | | ??????????????????????????# # """ ##?T | | ??????????????????????????# T # """ # | | ??????????????????????????# """ # | | ??????????????????????????# """? | | ??????????############????# """ """ """ | | ??????????# # #????# """ """ """ | | ??????????# = # <*#????# """ """ | | ??????????# # #????# = ###### | | ??????????#!* + %##########+#### # # ###?? | | ??????????#!* # % | | ??????????#! # *=%= | | ???############### k""" """ """==""" """ | | ???# #??????# "" """ """ """=%""" """ | | ???# """ #??????# "T """ """ """ """ """? | | ???# """ #??????# "" """ """ """ """ """? | | ???# """ ######## @ g g | | ???# !#] * | | ???# """=%+[! *==% ########? | | ???+ """ !#[ =[% ##############???????? | | ???# """ #[% """ #####+#####?????????????????? | | ???# # """ # *%% #?????????????????? | | ???# """ +=! """ + " = " #?????####????????? | | ???# """ ### # "" """ #?????"""" ???????? | | ???# """ #?# # """ """ ##### """" #??????? | | ???# #?# / # # """" #??????? | | ???########?# ######## "Y" + + #??????? | | ????????????# #??????# * """ # # #??????? | | ???????????? #??????# ## ## #??????? | | ???????????####??????############ #??######??????? | | ????????????????????????????????# ################ | | ????????????????????????????????#=# ! # | | ?????????????????????######?????#=# + < | | ?????????????????????# ####%# # ? | | ?????????????????? !!# [[[ # #? | | ?????????????????? > *|+ [[ # #? | | ?????????????????? # [[ # #? | | ????????????? ???###" "###### # #? | | ????????????? ?????#" |"! ??????# # #? | | ????????????? ?????#"""""???????# + #? | | ????????????? ??????#?#####???#?########## #? | +----------------------------------------------------+ Best States ------------- Heat Dissipation 25 Energy Generation 10 Energy Capacity 125 Matter Stores 300 Matter Capacity 300 Sight Range 16 Terrain Scan Density 10 Evasion (%) 62 Item Schematics ----------------- None Robot Schematics ------------------ None Fabricated ------------ Nothing Alien Tech Used ----------------- None Achievements -------------- None Challenges ------------ None RPGLIKE | -11 -10 --------- Run | Scr Mat Levels Raised 1 | . 1 XP Earned 4515 | 3000 1515 XP Spent 2800 | 100 2700 Upgrades 6 | 1 5 Weapon Slot 1 | . 1 Mass Support 1 | 1 . Ranged Accuracy 4 | . 4 Protomatter Created 119 | . 119 Integrity Restored 145 | . 145 Core 145 | . 145 Protomatter Decayed 7 | . 7 Game ------ Seed HelicalGaussProtection Manual? 0 Play Time 00:09:26 Cumulative 105.0 hours Start 2019.12.26 @ 19:17:05 End 2019.12.26 @ 19:22:10 Sessions 1 Manual Loads 0 Difficulty Rogue Special Mode Winter2019/RPGLIKE Game No. 125 Rogue 125 Adventurer 0 Explorer 0 Win Type - Total 10 Types 9/0/0/1/0/0/0 Lore% 54 Gallery% 63 Achievement% 57 Wizard Run 0 Options --------- ASCII 0 Keyboard 0 Movement Numpad Keybinds 0 Fullscreen 2 Font 18/SmallcapsGlow Map View 76x50 Tactical HUD 1 Map Filters NONE Filters NONE Steam 1 RUN: bb9bc70b-0b88-4d90-a5a2-564dc2f8daaa